fUST/lending_fUST_20240415
["ID","MTS","AMOUNT","RATE_DAILY","PERIOD"]
[322632475,1713141040369,-500.0,0.0003863,7]
[322632476,1713141040379,-500.0,0.0003863,7]
[322632477,1713141040389,-500.0,0.0003863,7]
[322632478,1713141040398,-500.0,0.0003863,7]
[322632479,1713141040407,-500.0,0.0003863,7]
[322632480,1713141040416,-500.0,0.0003863,7]
[322632481,1713141040426,-500.0,0.0003863,7]
[322632482,1713141040435,-500.0,0.0003863,7]
[322632483,1713141040444,-500.0,0.0003863,7]
[322632484,1713141040452,-485.93646374,0.0003863,7]
[322632485,1713141040461,-500.0,0.0003863,7]
[322632486,1713141040470,-500.0,0.0003863,7]
[322632487,1713141040480,-500.0,0.0003863,7]
[322632488,1713141040489,-500.0,0.0003863,7]
[322632489,1713141040498,-500.0,0.0003863,7]
[322632490,1713141040507,-500.0,0.0003863,7]
[322632491,1713141040516,-500.0,0.0003863,7]
[322632492,1713141040525,-488.85023791,0.0003863,7]
[322632493,1713141040534,-500.0,0.0003863,7]
[322632494,1713141040543,-500.0,0.0003863,7]
[322632495,1713141040552,-500.0,0.0003863,7]
[322632496,1713141040561,-523.25980538,0.0003863,7]
[322632497,1713141040570,-648.98,0.0003863,7]
[322632498,1713141040580,-1563.19,0.0003863,7]
[322632499,1713141040589,-500.0,0.0003863,7]
[322632500,1713141040598,-500.0,0.0003863,7]
[322632501,1713141040607,-500.0,0.0003863,7]
[322632502,1713141040616,-500.0,0.0003863,7]
[322632503,1713141040625,-500.0,0.0003863,7]
[322632504,1713141040635,-500.0,0.0003863,7]
[322632505,1713141040643,-500.0,0.0003863,7]
[322632506,1713141040652,-500.0,0.0003863,7]
[322632507,1713141040661,-500.0,0.0003863,7]
[322632508,1713141040672,-500.0,0.0003863,7]
[322632510,1713141040683,-619.67,0.0003863,7]
[322632511,1713141040692,-6575.62,0.0003863,7]
[322632512,1713141040701,-500.0,0.0003863,7]
[322632513,1713141040710,-500.0,0.0003863,7]
[322632514,1713141040719,-504.05,0.0003863,7]
[322632515,1713141040728,-545.02,0.0003863,7]
[322632516,1713141040738,-1100.83,0.0003863,7]
[322632517,1713141040747,-2131.94,0.0003863,7]
[322632518,1713141040756,-500.0,0.0003863,7]
[322632519,1713141040765,-500.0,0.0003863,7]
[322632520,1713141040774,-858.28,0.0003863,7]
[322632521,1713141040783,-500.0,0.0003863,7]
[322632522,1713141040792,-500.0,0.0003863,7]
[322632523,1713141040801,-2146.14,0.0003863,7]
[322632524,1713141040810,-500.0,0.0003863,7]
[322632525,1713141040821,-16241.19,0.0003863,7]
[322632526,1713141040830,-508.55,0.0003863,7]
[322632527,1713141040840,-655.24,0.0003863,7]
[322632528,1713141040849,-1495.71,0.0003863,7]
[322632529,1713141040858,-500.0,0.0003863,7]
[322632530,1713141040867,-514.94946323,0.0003863,7]
[322632531,1713141040876,-18954.38,0.0003863,7]
[322632532,1713141040885,-683.95,0.0003863,7]
[322632533,1713141040894,-500.0,0.0003863,7]
[322632534,1713141040903,-3633.99,0.0003863,7]
[322632535,1713141040911,-4700.09,0.0003863,7]
[322632536,1713141040920,-536.02,0.0003863,7]
[322632537,1713141040931,-2599.73,0.0003863,7]
[322632538,1713141040940,-500.0,0.0003863,7]
[322632539,1713141040950,-1847.64,0.0003863,7]
[322632540,1713141040960,-500.0,0.0003863,7]
[322632541,1713141040969,-569.17,0.0003863,7]
[322632542,1713141040978,-500.0,0.0003863,7]
[322632543,1713141040988,-971.22,0.0003863,7]
[322632544,1713141040998,-570.11,0.0003863,7]
[322632545,1713141041007,-500.0,0.0003863,7]
[322632546,1713141041017,-500.0,0.0003863,7]
[322632547,1713141041026,-500.0,0.0003863,7]
[322632548,1713141041035,-712.22,0.0003863,7]
[322632549,1713141041045,-236.94,0.0003863,7]
[322632550,1713141041054,-1031.91,0.0003863,7]
[322632551,1713141041063,-500.0,0.0003863,7]
[322632552,1713141041072,-500.0,0.0003863,7]
[322632553,1713141041082,-500.0,0.0003863,7]
[322632554,1713141041091,-500.0,0.0003863,7]
[322632555,1713141041100,-500.0,0.0003863,7]
[322632556,1713141041110,-500.0,0.0003863,7]
[322632557,1713141041221,-500.0,0.0003863,7]
[322632558,1713141041231,-500.0,0.0003863,7]
[322632559,1713141041240,-2078.26,0.0003863,7]
[322632560,1713141041250,-500.0,0.0003863,7]
[322632561,1713141041259,-2297.33,0.0003863,7]
[322632562,1713141041269,-500.0,0.0003863,7]
[322632563,1713141041278,-500.0,0.0003863,7]
[322632564,1713141041287,-505.48298672,0.0003863,7]
[322632565,1713141041296,-500.0,0.0003863,7]
[322632566,1713141041306,-2671.18,0.0003863,7]
[322632567,1713141041315,-45388.75,0.0003863,7]
[322632568,1713141041324,-500.0,0.0003863,7]
[322632569,1713141041333,-500.0,0.0003863,7]
[322632570,1713141041342,-694.62,0.0003863,7]
[322632571,1713141041352,-2364.39,0.0003863,7]
[322632572,1713141041361,-500.0,0.0003863,7]
[322632573,1713141041370,-500.0,0.0003863,7]
[322632574,1713141041379,-4561.1,0.0003863,7]
[322632575,1713141041388,-7437.52,0.0003863,7]
[322632576,1713141041398,-500.0,0.0003863,7]
[322632577,1713141041407,-500.0,0.0003863,7]
[322632578,1713141041416,-500.0,0.0003863,7]
[322632579,1713141041426,-2309.41,0.0003863,7]
[322632580,1713141041435,-500.0,0.0003863,7]
[322632581,1713141041444,-9690.94,0.0003863,7]
[322632582,1713141041453,-835.28,0.0003863,7]
[322632583,1713141041462,-500.0,0.0003863,7]
[322632584,1713141041472,-958.23,0.0003863,7]
[322632585,1713141041481,-2651.08,0.0003863,7]
[322632586,1713141041490,-500.0,0.0003863,7]
[322632587,1713141041499,-1363.97,0.0003863,7]
[322632588,1713141041509,-500.0,0.0003863,7]
[322632589,1713141041518,-2217.31,0.0003863,7]
[322632590,1713141041528,-627.97,0.0003863,7]
[322632591,1713141041537,-500.0,0.0003863,7]
[322632592,1713141041546,-268.80061848,0.0003863,7]
[322632593,1713141041555,-627.47,0.0003863,7]
[322632594,1713141041564,-500.0,0.0003863,7]
[322632595,1713141041573,-4615.71,0.0003863,7]
[322632596,1713141041583,-500.0,0.0003863,7]
[322632597,1713141041592,-500.0,0.0003863,7]
[322632598,1713141041602,-500.0,0.0003863,7]
[322632599,1713141041611,-260.52844265,0.000388,2]
[322632600,1713141041620,-3005.26966918,0.00038804,2]
[322632601,1713141041629,-260.52844165,0.000389,2]
[322632602,1713141041637,-500.0,0.000389,2]
[322632603,1713141041646,-3000.0,0.000389,20]
[322632604,1713141041656,-242.92908465,0.00038902,4]
[322632605,1713141041667,-155.09150399,0.00038902,4]
[322632606,1713141041676,-158.62437047,0.00038902,4]
[322632607,1713141041685,-3593.30971739,0.00038903,4]
[322632608,1713141041694,-500.0,0.00038903,10]
[322632609,1713141041705,-500.0,0.00038903,10]
[322632610,1713141041715,-500.0,0.00038903,10]
[322632611,1713141041724,-500.0,0.00038903,10]
[322632612,1713141041733,-500.0,0.00038903,10]
[322632613,1713141041747,-500.0,0.00038903,10]
[322632614,1713141041757,-437.34219538,0.00038904,7]
[322632615,1713141041767,-500.0,0.00038904,7]
[322632616,1713141041776,-500.0,0.00038904,7]
[322632617,1713141041785,-685.53,0.00038904,7]
[322632618,1713141041794,-500.0,0.00038904,7]
[322632619,1713141041804,-500.0,0.00038904,7]
[322632620,1713141041813,-151.0,0.00038904,2]
[322632621,1713141041823,-757.02,0.00038904,7]
[322632622,1713141041834,-585.03,0.00038904,7]
[322632623,1713141041844,-500.0,0.00038904,7]
[322632624,1713141041853,-500.0,0.00038904,7]
[322632625,1713141041863,-500.0,0.00038904,7]
[322632626,1713141041874,-500.0,0.00038904,7]
[322632627,1713141041883,-500.0,0.00038904,7]
[322632628,1713141041892,-500.0,0.00038904,7]
[322632629,1713141041902,-151.0,0.00038904,2]
[322632630,1713141041911,-151.0,0.00038904,2]
[322632631,1713141041920,-500.0,0.00038904,7]
[322632632,1713141041930,-1544.55,0.00038904,7]
[322632633,1713141041940,-500.0,0.00038904,7]
[322632634,1713141041949,-500.0,0.00038904,7]
[322632635,1713141041959,-500.0,0.00038904,7]
[322632636,1713141041968,-368.83977831,0.00038904,7]
[322632637,1713141041978,-500.0,0.00038904,7]
[322632638,1713141041987,-273.911012,0.00038904,2]
[322632639,1713141041996,-273.911012,0.00038904,2]
[322632640,1713141042006,-500.0,0.00038904,7]
[322632641,1713141042016,-151.0,0.00038904,2]
[322632642,1713141042025,-151.0,0.00038904,2]
[322632643,1713141042035,-500.0,0.00038904,7]
[322632644,1713141042044,-345.38173274,0.00038904,7]
[322632645,1713141042054,-500.0,0.00038904,7]
[322632646,1713141042064,-1635.1,0.00038904,7]
[322632647,1713141042073,-500.0,0.00038904,7]
[322632648,1713141042082,-500.0,0.00038904,7]
[322632649,1713141042090,-500.0,0.00038904,7]
[322632650,1713141042099,-500.0,0.00038904,7]
[322632651,1713141042108,-339.27618828,0.00038904,7]
[322632652,1713141042117,-272.3842325,0.00038904,7]
[322632653,1713141042125,-500.0,0.00038904,7]
[322632654,1713141042134,-1258.038428,0.00038904,2]
[322632655,1713141042143,-1258.038428,0.00038904,2]
[322632656,1713141042152,-1258.038428,0.00038904,2]
[322632657,1713141042161,-1258.038428,0.00038904,2]
[322632658,1713141042170,-641.78070259,0.00038904,7]
[322632659,1713141042181,-500.0,0.00038904,7]
[322632660,1713141042190,-500.0,0.00038904,7]
[322632661,1713141042198,-500.0,0.00038904,7]
[322632662,1713141042207,-500.0,0.00038904,7]
[322632663,1713141042216,-311.093542,0.00038904,2]
[322632664,1713141042225,-311.093542,0.00038904,2]
[322632665,1713141042234,-311.093542,0.00038904,2]
[322632666,1713141042244,-311.093542,0.00038904,2]
[322632667,1713141042252,-500.0,0.00038904,7]
[322632668,1713141042262,-500.0,0.00038904,7]
[322632669,1713141042271,-500.0,0.00038904,7]
[322632670,1713141042281,-500.0,0.00038904,7]
[322632671,1713141042290,-500.0,0.00038904,7]
[322632672,1713141042299,-349.01511117,0.00038904,7]
[322632673,1713141042308,-534.54505286,0.00038904,7]
[322632674,1713141042318,-500.0,0.00038904,7]
[322632675,1713141042327,-500.0,0.00038904,7]
[322632676,1713141042337,-500.0,0.00038904,7]
[322632677,1713141042346,-77.62961447,0.00038904,2]
[322632729,1713141044514,-73.37038553,0.00038904,2]
[322632730,1713141044523,-151.0,0.00038904,2]
[322632731,1713141044532,-151.0,0.00038904,2]
[322632732,1713141044542,-151.0,0.00038904,2]
[322632733,1713141044551,-151.0,0.00038904,2]
[322632734,1713141044560,-151.0,0.00038904,2]
[322632735,1713141044569,-500.0,0.00038904,7]
[322632736,1713141044579,-233.35,0.00038904,7]
[322632737,1713141044588,-648.98,0.00038904,7]
[322632738,1713141044597,-1563.19,0.00038904,7]
[322632739,1713141044606,-500.0,0.00038904,7]
[322632740,1713141044616,-597.6012476,0.00038904,7]
[322632741,1713141044625,-500.0,0.00038904,7]
[322632742,1713141044634,-500.0,0.00038904,7]
[322632743,1713141044643,-151.0,0.00038904,2]
[322632744,1713141044653,-151.0,0.00038904,2]
[322632745,1713141044664,-151.0,0.00038904,2]
[322632746,1713141044674,-151.0,0.00038904,2]
[322632747,1713141044684,-2257.731144,0.00038904,2]
[322632748,1713141044694,-2257.731144,0.00038904,2]
[322632749,1713141044704,-500.0,0.00038904,7]
[322632750,1713141044714,-2257.731144,0.00038904,2]
[322632751,1713141044724,-2257.731144,0.00038904,2]
[322632752,1713141044734,-151.0,0.00038904,2]
[322632753,1713141044743,-151.0,0.00038904,2]
[322632754,1713141044753,-492.77112123,0.00038904,7]
[322632755,1713141044763,-500.0,0.00038904,7]
[322632756,1713141044771,-619.67,0.00038904,7]
[322632757,1713141044782,-6575.62,0.00038904,7]
[322632758,1713141044791,-500.0,0.00038904,7]
[322632759,1713141044801,-504.05,0.00038904,7]
[322632760,1713141044810,-169.17035209,0.00038904,7]
[322632774,1713142026282,-154.76784823,0.00027039,2]
[322632775,1713142026303,-467.40907987,0.00027039,2]
[322632776,1713142026324,-216.04571923,0.0002704,2]
[322632777,1713142026344,-207.50225952,0.0002704,2]
[322632778,1713142026364,-2583.06595926,0.0002704,2]
[322632779,1713142026384,-300.0,0.0002704,2]
[322632780,1713142026404,-887.82162217,0.00027041,2]
[322632781,1713142026431,-154.76784823,0.00027041,2]
[322632782,1713142026452,-538.85499397,0.00027041,2]
[322632783,1713142026472,-3739.92568584,0.00027041,2]
[322632784,1713142026493,-473.75008714,0.00027041,2]
[322632785,1713142026513,-1932.85012401,0.00027041,2]
[322632786,1713142026536,-154.76784823,0.00027041,2]
[322632787,1713142026557,-408.16438819,0.00027041,2]
[322632788,1713142026577,-154.76784823,0.00027041,2]
[322632789,1713142026598,-243.05404661,0.00027042,2]
[322632790,1713142026620,-161.73972493,0.00027042,2]
[322632791,1713142026643,-1855.61624553,0.00027042,2]
[322632792,1713142026665,-59048.78648612,0.00027042,2]
[322632793,1713142026694,-470.55371564,0.00027043,2]
[322632794,1713142026716,-2994.39121085,0.00027043,2]
[322632795,1713142030096,-2123.81601787,0.00027038,2]
[322632796,1713142030117,-154.76784823,0.00027038,2]
[322632797,1713142030138,-154.76784823,0.00027038,2]
[322632798,1713142030164,-126.94759986,0.00027038,2]
[322632799,1713142031096,-31.76286415,0.00027038,2]
[322632800,1713142031122,-2578.5250593,0.00027043,2]
[322632801,1713142031147,-225.96625416,0.00027043,2]
[322632802,1713142031174,-7853.36285856,0.00027043,2]
[322632803,1713142031198,-1309.13435832,0.00027044,2]
[322632804,1713142031220,-518.9022578,0.00027044,2]
[322632805,1713142031245,-304.17480318,0.00027044,2]
[322632806,1713142031268,-154.76784823,0.00027044,2]
[322632807,1713142031292,-1495.01395474,0.00027044,2]
[322632808,1713142031318,-1088.50885786,0.00027045,2]
[322632809,1713142031339,-5790.15914979,0.00027046,2]
[322632810,1713142031366,-158.92791687,0.00027053,3]
[322632811,1713142031392,-500.0,0.00027144,2]
[322632812,1713142031415,-216.16701322,0.00027144,2]
[322632813,1713142031444,-916.77470393,0.00027161,2]
[322632814,1713142031469,-1113.38546992,0.00027161,2]
[322632815,1713142031494,-2619.14379363,0.00027173,2]
[322632816,1713142031521,-188.43765363,0.00027189,2]
[322632817,1713142031546,-217.5844975,0.00027261,2]
[322632818,1713142031567,-650.81139064,0.00027286,2]
[322632819,1713142031588,-326.47719376,0.00027288,2]
[322632820,1713142031613,-612.46800081,0.00027288,2]
[322632821,1713142031636,-181.07861207,0.00027288,2]
[322632822,1713142031660,-155.42165109,0.00027288,2]
[322632823,1713142031683,-154.95351395,0.00027289,2]
[322632824,1713142031704,-230.84972227,0.00027292,2]
[322632825,1713142031726,-1486.09779733,0.00027292,2]
[322632826,1713142031748,-239.38161668,0.00027292,4]
[322632827,1713142031769,-154.8915759,0.00027391,2]
[322632828,1713142031791,-155.06001921,0.00027392,2]
[322632829,1713142031813,-4825.07478741,0.00027392,2]
[322632830,1713142031835,-165.420773,0.00027397,2]
[322632831,1713142031857,-166.666666,0.00027397,2]
[322632832,1713142031879,-160.599643,0.00027397,2]
[322632833,1713142031900,-166.666666,0.00028038,2]
[322632834,1713142031924,-166.666666,0.00028679,2]
[322632835,1713142031945,-156.87945876,0.00028766,2]
[322632836,1713142031972,-158.92791685,0.00029224,4]
[322632837,1713142031995,-166.666666,0.00029321,2]
[322632838,1713142032018,-420.0,0.00029744,2]
[322632839,1713142032042,-1113.3854699,0.0002991,2]
[322632840,1713142032066,-166.666666,0.00029962,2]
[322632841,1713142032088,-166.666666,0.00030603,2]
[322632842,1713142032111,-158.92791685,0.00031395,5]
[322632843,1713142032133,-290.89266688,0.0003189,7]
[322632844,1713142032155,-1113.3854699,0.00032659,2]
[322632845,1713142032179,-413.0,0.00032718,2]
[322632846,1713142032202,-158.92791685,0.00033566,6]
[322632847,1713142032225,-465.26500893,0.00034,4]
[322632848,1713142032247,-2497.85535955,0.00035,4]
[322632849,1713142032270,-154.76784823,0.00035,4]
[322632850,1713142032292,-1113.3854699,0.00035407,2]
[322632851,1713142032315,-158.92791685,0.00035736,7]
[322632852,1713142032339,-999.61646349,0.00036803,2]
[322632853,1713142032362,-2000.0,0.00037894,2]
[322632854,1713142032385,-9751.30276195,0.000379,2]
[322632855,1713142032406,-158.92791685,0.00037907,8]
[322632856,1713142032429,-36433.14014437,0.0003799,5]
[322632857,1713142032449,-52764.28117176,0.0003799,2]
[322632868,1713142232548,-656.0,0.00035099,4]
[322632869,1713142232566,-1102.91372519,0.00035099,4]
[322632870,1713142232576,-1462.48790883,0.00035099,4]
[322632871,1713142232585,-326.5601394,0.000351,4]
[322632872,1713142232595,-2853.49560943,0.000351,4]
[322632873,1713142232606,-723.98943527,0.00035101,4]
[322632874,1713142232615,-379.78244212,0.00035101,4]
[322632875,1713142232624,-168.283776,0.00035102,2]
[322632876,1713142232634,-1192.85054803,0.00035879,4]
[322632877,1713142232642,-154.76784823,0.0003588,4]
[322632878,1713142232651,-213.23862727,0.00035881,4]
[322632879,1713142232661,-686.34730557,0.00035889,4]
[322632880,1713142232670,-666.41097566,0.0003589,2]
[322632881,1713142232679,-169.677903,0.00036715,2]
[322632882,1713142232688,-168.283776,0.00037494,2]
[322632883,1713142232698,-158.92791685,0.00037888,8]
[322632884,1713142232707,-222.67709398,0.00037888,2]
[322632885,1713142232716,-222.67709398,0.00037979,2]
[322632886,1713142232725,-60271.49033732,0.00037987,4]
[322632958,1713142238385,-303.60149311,0.00035098,4]
[322632960,1713142238395,-19064.69112196,0.00037987,4]
[322632962,1713142238405,-215.80880509,0.00037988,4]
[322632964,1713142238414,-154.99988865,0.00037988,4]
[322632966,1713142238424,-1930.96131375,0.00037988,4]
[322632968,1713142238433,-155.23215177,0.00037988,4]
[322632970,1713142238442,-3733.33339596,0.00037988,4]
[322632972,1713142238452,-466.8956131,0.00037988,4]
[322632974,1713142238461,-3591.98052796,0.00037988,2]
[322632976,1713142238471,-217.16865749,0.00037988,4]
[322632978,1713142238480,-1691.90808533,0.00037988,4]
[322632980,1713142238490,-7809.62886258,0.00037988,4]
[322632982,1713142238499,-269.08134402,0.00037988,4]
[322632984,1713142238508,-465.26500893,0.00037988,4]
[322632986,1713142238517,-154.76784823,0.00037988,4]
[322632987,1713142238526,-155.13918276,0.00037988,4]
[322632989,1713142238536,-582.45501583,0.00037988,4]
[322632991,1713142238545,-742.02009979,0.00037989,4]
[322632994,1713142238555,-414.24487596,0.00037989,4]
[322632995,1713142238565,-459.59200195,0.00037989,4]
[322632996,1713142238574,-10066.75742324,0.0003799,2]
[322632997,1713142238583,-154.86062544,0.00037994,4]
[322632998,1713142238593,-500.0,0.00037994,2]
[322632999,1713142238604,-155.95728951,0.00037994,4]
[322633000,1713142238613,-155.03089473,0.00037994,4]
[322633001,1713142238623,-155.0,0.00037994,4]
[322633002,1713142238632,-18836.15084417,0.00037994,4]
[322633003,1713142238642,-156.70553996,0.00037994,2]
[322633004,1713142238651,-224.53474292,0.00037994,4]
[322633005,1713142238660,-638.78408415,0.00037994,4]
[322633006,1713142238669,-500.0,0.00037995,2]
[322633007,1713142238678,-277.40950656,0.00037996,2]
[322633008,1713142238688,-154.84515485,0.00037996,4]
[322633009,1713142238698,-157.38490406,0.00037996,4]
[322633010,1713142238709,-314.60513727,0.00037996,4]
[322633011,1713142238719,-209.09087823,0.00037996,4]
[322633012,1713142238729,-601.81614276,0.00037997,4]
[322633013,1713142238739,-188.75485878,0.00037997,2]
[322633014,1713142238748,-304.02078287,0.00037997,2]
[322633015,1713142238757,-203.78092943,0.00037997,4]
[322633016,1713142238768,-1171.89989526,0.00037998,4]
[322633017,1713142238777,-842.6477665,0.00037998,37]
[322633018,1713142238786,-154.9999381,0.00037998,4]
[322633019,1713142238796,-155.01833858,0.00037998,4]
[322633020,1713142238805,-277.10572932,0.00037998,4]
[322633021,1713142238814,-3563.3372478,0.00037998,4]
[322633022,1713142238824,-239.4680147,0.00037998,2]
[322633023,1713142238834,-217.25817757,0.00037998,4]
[322633024,1713142238843,-483.94618568,0.00037998,4]
[322633025,1713142238852,-193.14313214,0.00037998,4]
[322633026,1713142238862,-300.03776698,0.00037998,4]
[322633027,1713142238871,-1921.7277095,0.00037998,30]
[322633028,1713142238880,-1749.96689646,0.00037998,4]
[322633029,1713142238889,-229.90171308,0.00037998,4]
[322633030,1713142238899,-534.89668058,0.00037998,4]
[322633031,1713142238908,-459.51352383,0.00037998,4]
[322633032,1713142238918,-3003.25088895,0.00037998,4]
[322633033,1713142238927,-155.38446432,0.00037998,4]
[322633034,1713142238938,-351.33312238,0.00037998,4]
[322633035,1713142238949,-18216.57007219,0.00037999,5]
[322633036,1713142238959,-500.0,0.00037999,15]
[322633037,1713142238972,-500.0,0.00037999,15]
[322633038,1713142238982,-547.4549558,0.00037999,15]
[322633039,1713142238992,-482.29222755,0.00037999,15]
[322633040,1713142239002,-466.66683023,0.00037999,15]
[322633041,1713142239012,-500.0,0.00037999,15]
[322633042,1713142239023,-500.0,0.00037999,15]
[322633043,1713142239033,-500.0,0.00037999,15]
[322633044,1713142239043,-500.0,0.00037999,15]
[322633045,1713142239052,-500.0,0.00037999,15]
[322633046,1713142239062,-500.0,0.00037999,15]
[322633047,1713142239083,-500.0,0.00037999,15]
[322633048,1713142239094,-500.0,0.00037999,15]
[322633049,1713142239105,-259.57845051,0.00037999,15]
[322633050,1713142239115,-500.0,0.00037999,15]
[322633051,1713142239127,-500.0,0.00037999,15]
[322633052,1713142239136,-500.0,0.00037999,15]
[322633053,1713142239145,-500.0,0.00037999,15]
[322633054,1713142239154,-627.19779281,0.00037999,15]
[322633055,1713142239163,-500.0,0.00037999,15]
[322633056,1713142239173,-206.7022643,0.00037999,15]
[322633057,1713142239182,-500.0,0.00037999,15]
[322633058,1713142239191,-500.0,0.00037999,15]
[322633059,1713142239201,-500.0,0.00037999,15]
[322633060,1713142239210,-500.0,0.00037999,15]
[322633061,1713142239219,-500.0,0.00037999,15]
[322633062,1713142239229,-500.0,0.00037999,15]
[322633063,1713142239239,-500.0,0.00037999,15]
[322633064,1713142239249,-500.0,0.00037999,15]
[322633065,1713142239260,-500.0,0.00037999,15]
[322633066,1713142239270,-187.08745306,0.00037999,15]
[322633067,1713142239280,-3677.29,0.00037999,2]
[322633068,1713142239289,-3677.29,0.00037999,2]
[322633069,1713142239299,-3677.29,0.00037999,2]
[322633070,1713142239308,-3677.29,0.00037999,2]
[322633071,1713142239318,-3677.29,0.00037999,2]
[322633072,1713142239328,-3677.29,0.00037999,2]
[322633073,1713142239337,-3677.29,0.00037999,2]
[322633074,1713142239346,-3677.29,0.00037999,2]
[322633075,1713142239356,-500.0,0.00037999,15]
[322633076,1713142239365,-3677.31,0.00037999,2]
[322633077,1713142239378,-219092.14476948,0.00038,5]
[322633078,1713142239387,-165.0,0.00038,2]
[322633079,1713142239399,-222.67709398,0.00038071,2]
[322633080,1713142239410,-222.67709398,0.00038162,2]
[322633081,1713142239420,-222.67709398,0.00038253,2]
[322633082,1713142239430,-3005.26966918,0.00038256,2]
[322633083,1713142239440,-3677.31,0.0003835,2]
[322633084,1713142239450,-86811.60727966,0.00038351,2]
[322633085,1713142239460,-6136.86955457,0.00038353,4]
[322633086,1713142239470,-658.56,0.00038355,4]
[322633087,1713142239480,-500.0,0.00038356,7]
[322633088,1713142239489,-500.0,0.00038356,7]
[322633089,1713142239499,-377.37248519,0.00038356,7]
[322633090,1713142239508,-500.0,0.00038356,7]
[322633091,1713142239518,-500.0,0.00038356,7]
[322633092,1713142239528,-200.71078306,0.00038356,7]
[322633093,1713142239538,-500.0,0.00038356,7]
[322633094,1713142239547,-500.0,0.00038356,7]
[322633095,1713142239557,-159.46396657,0.00038356,7]
[322633096,1713142239567,-500.0,0.00038356,7]
[322633097,1713142239578,-500.0,0.00038356,7]
[322633098,1713142239588,-1566.97,0.00038356,7]
[322633099,1713142239599,-500.0,0.00038356,7]
[322633100,1713142239610,-500.0,0.00038356,7]
[322633101,1713142239621,-339.27618828,0.00038356,7]
[322633102,1713142239631,-246.51846652,0.00038356,7]
[322633103,1713142239641,-181.97753445,0.00038356,7]
[322633104,1713142239652,-500.0,0.00038356,7]
[322633105,1713142239663,-500.0,0.00038356,7]
[322633106,1713142239673,-500.0,0.00038356,7]
[322633107,1713142239684,-500.0,0.00038356,7]
[322633108,1713142239694,-500.0,0.00038356,7]
[322633109,1713142239705,-641.78070259,0.00038356,7]
[322633110,1713142239716,-500.0,0.00038356,7]
[322633111,1713142239726,-500.0,0.00038356,7]
[322633113,1713142239737,-500.0,0.00038356,7]
[322633116,1713142239747,-500.0,0.00038356,7]
[322633118,1713142239758,-500.0,0.00038356,7]
[322633120,1713142239769,-500.0,0.00038356,7]
[322633122,1713142239779,-500.0,0.00038356,7]
[322633124,1713142239789,-500.0,0.00038356,7]
[322633126,1713142239800,-500.0,0.00038356,7]
[322633129,1713142239810,-500.0,0.00038356,7]
[322633132,1713142239819,-627.47,0.00038356,7]
[322633135,1713142239829,-500.0,0.00038356,7]
[322633138,1713142239838,-500.0,0.00038356,7]
[322633140,1713142239848,-500.0,0.00038356,7]
[322633142,1713142239857,-500.0,0.00038356,7]
[322633144,1713142239867,-560.65,0.00038356,7]
[322633146,1713142239877,-382.88053639,0.00038356,7]
[322633148,1713142239886,-500.0,0.00038356,7]
[322633150,1713142239895,-500.0,0.00038356,7]
[322633152,1713142239905,-1498.05,0.00038356,7]
[322633154,1713142239916,-500.0,0.00038356,7]
[322633156,1713142239926,-500.0,0.00038356,7]
[322633158,1713142239935,-500.0,0.00038356,7]
[322633159,1713142239944,-500.0,0.00038356,7]
[322633161,1713142239953,-500.0,0.00038356,7]
[322633163,1713142239963,-500.0,0.00038356,7]
[322633165,1713142239972,-500.0,0.00038356,7]
[322633167,1713142239981,-510.31776424,0.00038356,7]
[322633169,1713142239990,-500.0,0.00038356,7]